[Event "*** Titled Tuesday Blitz"]
[Site "Chess.com"]
[Date "2021.02.02"]
[Round "3"]
[White "Bastiandash"]
[Black "milenapn"]
[Result "1-0"]
[WhiteElo "2475"]
[BlackElo "2020"]
[TimeControl "180+1"]
[EndTime "10:31:06 PST"]
[Termination "Bastiandash won on time"]

1. e4 {[%clk 0:03:00.9]} 1... e5 {[%clk 0:02:59.1]} 2. Nf3 {[%clk 0:02:54.6]}
2... Nc6 {[%clk 0:02:58.8]} 3. Nc3 {[%clk 0:02:43.6]} 3... Nf6 {[%clk
0:02:57.6]} 4. Bc4 {[%clk 0:02:40.1]} 4... Bc5 {[%clk 0:02:57.1]} 5. d3 {[%clk
0:02:38.9]} 5... d6 {[%clk 0:02:56.4]} 6. a3 {[%clk 0:02:35.5]} 6... h6 {[%clk
0:02:54.2]} 7. h3 {[%clk 0:02:35.4]} 7... Ne7 {[%clk 0:02:47.8]} 8. b4 {[%clk
0:02:28.7]} 8... Bb6 {[%clk 0:02:46.9]} 9. Na4 {[%clk 0:02:28.6]} 9... Ng6
{[%clk 0:02:45.4]} 10. Nxb6 {[%clk 0:02:23.7]} 10... axb6 {[%clk 0:02:46.3]} 11.
O-O {[%clk 0:02:19.6]} 11... O-O {[%clk 0:02:45.3]} 12. Nh2 {[%clk 0:02:05.2]}
12... Nf4 {[%clk 0:02:29.6]} 13. Bxf4 {[%clk 0:02:03.3]} 13... exf4 {[%clk
0:02:30.5]} 14. Qf3 {[%clk 0:01:52.5]} 14... g5 {[%clk 0:02:28.8]} 15. d4 {[%clk
0:01:48.7]} 15... Nh7 {[%clk 0:01:56.2]} 16. Rfe1 {[%clk 0:01:37.9]} 16... Kh8
{[%clk 0:01:54.3]} 17. g3 {[%clk 0:01:11.6]} 17... fxg3 {[%clk 0:01:50.6]} 18.
fxg3 {[%clk 0:01:12.5]} 18... f5 {[%clk 0:01:50.5]} 19. Bd3 {[%clk 0:00:43.7]}
19... Qf6 {[%clk 0:01:34.9]} 20. e5 {[%clk 0:00:40.2]} 20... dxe5 {[%clk
0:01:25.8]} 21. Rxe5 {[%clk 0:00:40.5]} 21... f4 {[%clk 0:01:24.1]} 22. g4
{[%clk 0:00:39.8]} 22... Be6 {[%clk 0:01:17]} 23. Rae1 {[%clk 0:00:38.5]} 23...
Bg8 {[%clk 0:01:16.1]} 24. Bf5 {[%clk 0:00:34.8]} 24... Rad8 {[%clk 0:01:03.8]}
25. c3 {[%clk 0:00:34.4]} 25... Ra8 {[%clk 0:00:45.9]} 26. Ra1 {[%clk
0:00:32.6]} 26... Ra7 {[%clk 0:00:37.9]} 27. a4 {[%clk 0:00:31.2]} 27... Rfa8
{[%clk 0:00:37.2]} 28. Bc2 {[%clk 0:00:31.2]} 28... Kg7 {[%clk 0:00:27.1]} 29.
Rae1 {[%clk 0:00:30.1]} 29... Kh8 {[%clk 0:00:16.6]} 30. Qe4 {[%clk 0:00:29.7]}
30... c5 {[%clk 0:00:07.4]} 31. Re7 {[%clk 0:00:29.6]} 31... Qxe7 {[%clk
0:00:01.9]} 32. Qxe7 {[%clk 0:00:28.8]} 32... cxb4 {[%clk 0:00:02.4]} 33. cxb4
{[%clk 0:00:28.4]} 33... Rc8 {[%clk 0:00:01.8]} 34. Qe5+ {[%clk 0:00:27.5]} 1-0

[Event "*** Titled Tuesday Blitz"]
[Site "Chess.com"]
[Date "2021.02.02"]
[Round "3"]
[White "JiiHart"]
[Black "queen_iryna"]
[Result "1-0"]
[WhiteElo "2113"]
[BlackElo "2319"]
[TimeControl "180+1"]
[EndTime "10:31:06 PST"]
[Termination "JiiHart won by resignation"]

1. e4 {[%clk 0:03:00.9]} 1... d6 {[%clk 0:03:00.4]} 2. d4 {[%clk 0:03:00]} 2...
Nf6 {[%clk 0:03:01]} 3. Nc3 {[%clk 0:02:59.9]} 3... e5 {[%clk 0:03:01.6]} 4. Nf3
{[%clk 0:02:57]} 4... Nbd7 {[%clk 0:03:01.2]} 5. Bc4 {[%clk 0:02:46.7]} 5... Be7
{[%clk 0:03:00.9]} 6. dxe5 {[%clk 0:02:39.3]} 6... dxe5 {[%clk 0:02:45.8]} 7.
Bxf7+ {[%clk 0:02:36.4]} 7... Kxf7 {[%clk 0:02:45.7]} 8. Ng5+ {[%clk 0:02:36.5]}
8... Kg8 {[%clk 0:02:43.3]} 9. Ne6 {[%clk 0:02:28.4]} 9... Qe8 {[%clk
0:02:43.3]} 10. Nxc7 {[%clk 0:02:23]} 10... Qg6 {[%clk 0:02:42.5]} 11. Nxa8
{[%clk 0:02:13.4]} 11... Qxg2 {[%clk 0:02:41.8]} 12. Rf1 {[%clk 0:02:12.5]}
12... Nc5 {[%clk 0:02:10.3]} 13. f3 {[%clk 0:01:48.3]} 13... Ng4 {[%clk
0:01:44.9]} 14. Qe2 {[%clk 0:01:06.7]} 14... Bh4+ {[%clk 0:01:20.8]} 15. Kd1
{[%clk 0:01:06.4]} 15... Nf2+ {[%clk 0:01:12.5]} 16. Rxf2 {[%clk 0:01:05.7]}
16... Bxf2 {[%clk 0:01:05.9]} 17. Be3 {[%clk 0:00:51.5]} 17... Qg1+ {[%clk
0:00:17.4]} 18. Kd2 {[%clk 0:00:51.2]} 18... Bxe3+ {[%clk 0:00:13.2]} 19. Qxe3
{[%clk 0:00:50.3]} 19... Qxh2+ {[%clk 0:00:12.8]} 20. Qe2 {[%clk 0:00:47.7]}
20... Qxe2+ {[%clk 0:00:11.6]} 21. Kxe2 {[%clk 0:00:46.4]} 21... h5 {[%clk
0:00:11]} 22. Rd1 {[%clk 0:00:45.7]} 22... h4 {[%clk 0:00:09.5]} 23. Rd8+ {[%clk
0:00:44.3]} 23... Kh7 {[%clk 0:00:09.7]} 24. Rxh8+ {[%clk 0:00:44.4]} 24... Kxh8
{[%clk 0:00:10.6]} 25. Nc7 {[%clk 0:00:44.5]} 25... h3 {[%clk 0:00:10.4]} 26.
Kf2 {[%clk 0:00:44.4]} 26... Ne6 {[%clk 0:00:08.5]} 27. Nxe6 {[%clk 0:00:42.4]}
27... Bxe6 {[%clk 0:00:09.4]} 28. Nd5 {[%clk 0:00:41.6]} 28... Kg8 {[%clk
0:00:07.2]} 29. Kg3 {[%clk 0:00:40.9]} 29... Kf7 {[%clk 0:00:06.3]} 30. c4
{[%clk 0:00:41]} 30... b6 {[%clk 0:00:05]} 31. b3 {[%clk 0:00:41.2]} 31... Bxd5
{[%clk 0:00:02.8]} 32. cxd5 {[%clk 0:00:36.9]} 32... Ke7 {[%clk 0:00:03.5]} 33.
Kxh3 {[%clk 0:00:37.1]} 33... Kd6 {[%clk 0:00:03.8]} 34. Kg4 {[%clk 0:00:37.5]}
34... a6 {[%clk 0:00:03.2]} 35. Kf5 {[%clk 0:00:36.6]} 35... b5 {[%clk
0:00:04.1]} 36. b4 {[%clk 0:00:35.5]} 36... a5 {[%clk 0:00:05]} 37. bxa5 {[%clk
0:00:34.6]} 37... b4 {[%clk 0:00:05.4]} 38. a6 {[%clk 0:00:34.1]} 38... Kc7
{[%clk 0:00:05.7]} 39. Kxe5 {[%clk 0:00:33.4]} 39... Kb6 {[%clk 0:00:06.2]} 40.
d6 {[%clk 0:00:33.6]} 40... Kxa6 {[%clk 0:00:06.5]} 41. d7 {[%clk 0:00:33.7]}
1-0

[Event "*** Titled Tuesday Blitz"]
[Site "Chess.com"]
[Date "2021.02.02"]
[Round "3"]
[White "Misticpikachu"]
[Black "MatyChess1"]
[Result "0-1"]
[WhiteElo "2398"]
[BlackElo "2589"]
[TimeControl "180+1"]
[EndTime "10:31:08 PST"]
[Termination "MatyChess1 won on time"]

1. c4 {[%clk 0:03:00.9]} 1... e5 {[%clk 0:02:58.6]} 2. Nc3 {[%clk 0:02:57.4]}
2... Nc6 {[%clk 0:02:58.7]} 3. Nf3 {[%clk 0:02:51.8]} 3... Nf6 {[%clk
0:02:58.4]} 4. e4 {[%clk 0:02:51.5]} 4... Bb4 {[%clk 0:02:58.2]} 5. d3 {[%clk
0:02:40.3]} 5... d6 {[%clk 0:02:57.6]} 6. a3 {[%clk 0:02:31.8]} 6... Bc5 {[%clk
0:02:32]} 7. b4 {[%clk 0:02:26.1]} 7... Bb6 {[%clk 0:02:31.7]} 8. Na4 {[%clk
0:02:23.9]} 8... Bg4 {[%clk 0:02:27.7]} 9. Nxb6 {[%clk 0:02:22.7]} 9... axb6
{[%clk 0:02:27.5]} 10. Be3 {[%clk 0:02:16]} 10... Bxf3 {[%clk 0:02:25.1]} 11.
gxf3 {[%clk 0:02:07.9]} 11... Nh5 {[%clk 0:02:24.7]} 12. Qd2 {[%clk 0:01:55.3]}
12... h6 {[%clk 0:02:14.8]} 13. Be2 {[%clk 0:01:33.8]} 13... Qh4 {[%clk
0:02:08.5]} 14. Rg1 {[%clk 0:01:14.1]} 14... Qf6 {[%clk 0:01:37.9]} 15. Kd1
{[%clk 0:00:45.3]} 15... Nf4 {[%clk 0:01:34.5]} 16. Kc2 {[%clk 0:00:37.3]} 16...
g5 {[%clk 0:01:29.6]} 17. Rg4 {[%clk 0:00:13.6]} 17... Ne6 {[%clk 0:01:24.9]}
18. h4 {[%clk 0:00:08.3]} 18... gxh4 {[%clk 0:01:19]} 19. Kb2 {[%clk 0:00:06.1]}
19... h5 {[%clk 0:01:05.9]} 20. Rg2 {[%clk 0:00:02.9]} 20... Ncd4 {[%clk
0:01:00.2]} 21. Rag1 {[%clk 0:00:02.5]} 21... Nf4 {[%clk 0:00:38.4]} 22. Bxf4
{[%clk 0:00:01.5]} 22... Qxf4 {[%clk 0:00:36.9]} 23. Qxf4 {[%clk 0:00:01.3]}
23... exf4 {[%clk 0:00:37.4]} 24. Rg8+ {[%clk 0:00:02.2]} 24... Ke7 {[%clk
0:00:37.7]} 25. Rxh8 {[%clk 0:00:02.7]} 25... Rxh8 {[%clk 0:00:37.3]} 26. Bd1
{[%clk 0:00:03.6]} 26... Kf6 {[%clk 0:00:29.6]} 27. Kc3 {[%clk 0:00:04]} 27...
c5 {[%clk 0:00:28.8]} 28. Rh1 {[%clk 0:00:04.7]} 28... Ra8 {[%clk 0:00:24.8]}
29. Kb2 {[%clk 0:00:04.8]} 29... Rg8 {[%clk 0:00:20.9]} 30. Rxh4 {[%clk
0:00:04.6]} 30... Rg2 {[%clk 0:00:20.9]} 31. Rxf4+ {[%clk 0:00:03.1]} 31... Ke6
{[%clk 0:00:17.6]} 32. a4 {[%clk 0:00:01.2]} 32... cxb4 {[%clk 0:00:15.2]} 0-1

[Event "*** Titled Tuesday Blitz"]
[Site "Chess.com"]
[Date "2021.02.02"]
[Round "3"]
[White "DanielTitichoca"]
[Black "mr65"]
[Result "1-0"]
[WhiteElo "2350"]
[BlackElo "2141"]
[TimeControl "180+1"]
[EndTime "10:31:08 PST"]
[Termination "DanielTitichoca won on time"]

1. e4 {[%clk 0:03:00.9]} 1... e5 {[%clk 0:02:54.5]} 2. Nf3 {[%clk 0:03:01.4]}
2... Nc6 {[%clk 0:02:53.8]} 3. Bc4 {[%clk 0:03:02]} 3... Nf6 {[%clk 0:02:52.9]}
4. O-O {[%clk 0:03:02.7]} 4... Bc5 {[%clk 0:02:51.2]} 5. d3 {[%clk 0:02:34.2]}
5... h6 {[%clk 0:02:49.4]} 6. c3 {[%clk 0:02:33.9]} 6... O-O {[%clk 0:02:47.3]}
7. Nbd2 {[%clk 0:02:31.8]} 7... d5 {[%clk 0:02:45.8]} 8. exd5 {[%clk 0:02:30.8]}
8... Nxd5 {[%clk 0:02:45.2]} 9. Ne4 {[%clk 0:02:26.7]} 9... Bb6 {[%clk
0:02:44.2]} 10. b4 {[%clk 0:02:25.4]} 10... a6 {[%clk 0:02:40.6]} 11. Qd2 {[%clk
0:02:26.3]} 11... Kh8 {[%clk 0:02:34.8]} 12. Nc5 {[%clk 0:02:21.4]} 12... Bxc5
{[%clk 0:02:33.4]} 13. bxc5 {[%clk 0:02:21.1]} 13... Be6 {[%clk 0:02:11.9]} 14.
Re1 {[%clk 0:02:19.4]} 14... f6 {[%clk 0:01:51.6]} 15. d4 {[%clk 0:02:16.2]}
15... Na5 {[%clk 0:01:51.1]} 16. Bd3 {[%clk 0:02:09.4]} 16... Nf4 {[%clk
0:01:50.1]} 17. Bb1 {[%clk 0:02:03.6]} 17... Bd5 {[%clk 0:01:46.1]} 18. Qc2
{[%clk 0:02:02.4]} 18... e4 {[%clk 0:01:43.1]} 19. Bxf4 {[%clk 0:02:00]} 19...
Kg8 {[%clk 0:01:18.2]} 20. Rxe4 {[%clk 0:01:57.3]} 20... f5 {[%clk 0:01:03.6]}
21. Re3 {[%clk 0:01:55.3]} 21... g5 {[%clk 0:01:00.8]} 22. Be5 {[%clk
0:01:52.5]} 22... Nc4 {[%clk 0:00:55.8]} 23. a4 {[%clk 0:01:49.2]} 23... Nxe3
{[%clk 0:00:54]} 24. fxe3 {[%clk 0:01:50.1]} 24... Be4 {[%clk 0:00:48.1]} 25.
Qb3+ {[%clk 0:01:47.7]} 25... Kh7 {[%clk 0:00:47.7]} 26. Bxe4 {[%clk 0:01:43.7]}
26... fxe4 {[%clk 0:00:47.3]} 27. Nd2 {[%clk 0:01:44.4]} 27... Qd7 {[%clk
0:00:44.6]} 28. Qxb7 {[%clk 0:01:41.7]} 28... Qf5 {[%clk 0:00:41.8]} 29. Qxe4
{[%clk 0:01:40.7]} 29... Qxe4 {[%clk 0:00:40]} 30. Nxe4 {[%clk 0:01:41.4]} 30...
Rab8 {[%clk 0:00:38.8]} 31. Rf1 {[%clk 0:01:39]} 31... Rxf1+ {[%clk 0:00:35.9]}
32. Kxf1 {[%clk 0:01:39.9]} 32... Rb1+ {[%clk 0:00:34.2]} 33. Kf2 {[%clk
0:01:40.2]} 33... c6 {[%clk 0:00:34.1]} 34. Kf3 {[%clk 0:01:41.1]} 34... Ra1
{[%clk 0:00:33.5]} 35. c4 {[%clk 0:01:39.5]} 35... Rxa4 {[%clk 0:00:32.7]} 36.
d5 {[%clk 0:01:40.4]} 36... g4+ {[%clk 0:00:26.5]} 37. Ke2 {[%clk 0:01:35.9]}
37... cxd5 {[%clk 0:00:25]} 38. Nf6+ {[%clk 0:01:31.3]} 38... Kg6 {[%clk
0:00:24.8]} 39. cxd5 {[%clk 0:01:32.2]} 39... Kf5 {[%clk 0:00:23.1]} 40. d6
{[%clk 0:01:27.8]} 40... Kxe5 {[%clk 0:00:20.9]} 41. d7 {[%clk 0:01:27.1]} 41...
Ra2+ {[%clk 0:00:20.6]} 42. Kd1 {[%clk 0:01:23.9]} 42... Ra1+ {[%clk 0:00:18.7]}
43. Kc2 {[%clk 0:01:23.6]} 43... Ra2+ {[%clk 0:00:18.1]} 44. Kc1 {[%clk
0:01:23.9]} 44... Ra1+ {[%clk 0:00:17.4]} 45. Kb2 {[%clk 0:01:22]} 45... Rd1
{[%clk 0:00:16.5]} 46. c6 {[%clk 0:01:19.9]} 46... Kxf6 {[%clk 0:00:15.7]} 47.
c7 {[%clk 0:01:18.9]} 47... Rxd7 {[%clk 0:00:14.6]} 48. c8=Q {[%clk 0:01:19.2]}
48... Re7 {[%clk 0:00:13.6]} 49. Qc3+ {[%clk 0:01:19.2]} 49... Kg5 {[%clk
0:00:12.4]} 50. Qd4 {[%clk 0:01:20.1]} 50... a5 {[%clk 0:00:10.3]} 51. Qc5+
{[%clk 0:01:19.2]} 51... Kh4 {[%clk 0:00:07.7]} 52. Qxe7+ {[%clk 0:01:19.1]}
52... Kh5 {[%clk 0:00:06.5]} 53. Qe5+ {[%clk 0:01:19.3]} 1-0

[Event "*** Titled Tuesday Blitz"]
[Site "Chess.com"]
[Date "2021.02.02"]
[Round "3"]
[White "BabyBoss31"]
[Black "starplatinum2030"]
[Result "1-0"]
[WhiteElo "2314"]
[BlackElo "2035"]
[TimeControl "180+1"]
[EndTime "10:31:08 PST"]
[Termination "BabyBoss31 won on time"]

1. d4 {[%clk 0:03:00.9]} 1... d5 {[%clk 0:02:59.4]} 2. Bf4 {[%clk 0:02:58.5]}
2... c5 {[%clk 0:02:58.5]} 3. e3 {[%clk 0:02:52]} 3... Nf6 {[%clk 0:02:57.3]} 4.
dxc5 {[%clk 0:02:48.7]} 4... Nc6 {[%clk 0:02:56.7]} 5. Bb5 {[%clk 0:02:39.6]}
5... e6 {[%clk 0:02:42.8]} 6. b4 {[%clk 0:02:35.9]} 6... a5 {[%clk 0:02:37.6]}
7. c3 {[%clk 0:02:33]} 7... Bd7 {[%clk 0:02:33.6]} 8. Qb3 {[%clk 0:02:28.4]}
8... b6 {[%clk 0:02:13.9]} 9. Bxc6 {[%clk 0:02:21.9]} 9... Bxc6 {[%clk
0:02:09.9]} 10. b5 {[%clk 0:02:20.6]} 10... a4 {[%clk 0:02:09.4]} 11. Qb2 {[%clk
0:02:15.2]} 11... Bxc5 {[%clk 0:01:42]} 12. bxc6 {[%clk 0:02:10.9]} 12... Qe7
{[%clk 0:01:31.5]} 13. Nf3 {[%clk 0:02:06.5]} 13... Nh5 {[%clk 0:01:30]} 14. O-O
{[%clk 0:02:01.4]} 14... O-O {[%clk 0:01:25.6]} 15. Nbd2 {[%clk 0:01:56.7]}
15... Nxf4 {[%clk 0:01:17.2]} 16. exf4 {[%clk 0:01:57.6]} 16... Qf6 {[%clk
0:01:17.4]} 17. Ne5 {[%clk 0:01:40.4]} 17... Qxf4 {[%clk 0:00:59.4]} 18. Ndf3
{[%clk 0:01:36]} 18... Rfc8 {[%clk 0:00:45.4]} 19. Rab1 {[%clk 0:01:18.2]} 19...
f6 {[%clk 0:00:20.7]} 20. Nd3 {[%clk 0:01:14.5]} 20... Qg4 {[%clk 0:00:16.8]}
21. Nxc5 {[%clk 0:01:09.6]} 21... bxc5 {[%clk 0:00:16.6]} 22. Qb7 {[%clk
0:01:08.6]} 22... Qf4 {[%clk 0:00:14.2]} 23. Qd7 {[%clk 0:01:01.6]} 23... Qc7
{[%clk 0:00:03.2]} 24. Qxe6+ {[%clk 0:00:59.7]} 24... Kh8 {[%clk 0:00:04.1]} 25.
Qxd5 {[%clk 0:00:36.9]} 25... Qxc6 {[%clk 0:00:04.3]} 26. Qc4 {[%clk 0:00:33.8]}
26... Re8 {[%clk 0:00:01.7]} 27. Rb5 {[%clk 0:00:32.5]} 27... Red8 {[%clk
0:00:02.1]} 28. Rxc5 {[%clk 0:00:32.3]} 28... Qb7 {[%clk 0:00:02.7]} 29. Rc7
{[%clk 0:00:31.8]} 29... Qb2 {[%clk 0:00:03]} 30. Qf7 {[%clk 0:00:31.9]} 30...
Rg8 {[%clk 0:00:03.5]} 31. Nh4 {[%clk 0:00:29.4]} 31... Raf8 {[%clk 0:00:03.9]}
32. Qh5 {[%clk 0:00:29.6]} 32... h6 {[%clk 0:00:03]} 33. Ng6+ {[%clk 0:00:27.3]}
33... Kh7 {[%clk 0:00:03.9]} 34. Nxf8+ {[%clk 0:00:27.5]} 34... Rxf8 {[%clk
0:00:04.8]} 35. Qg4 {[%clk 0:00:26.9]} 35... Rg8 {[%clk 0:00:02.2]} 36. Qxa4
{[%clk 0:00:27]} 36... Qc2 {[%clk 0:00:01.9]} 37. Qxc2+ {[%clk 0:00:26.9]} 1-0

[Event "*** Titled Tuesday Blitz"]
[Site "Chess.com"]
[Date "2021.02.02"]
[Round "3"]
[White "Lion-Al-Messi"]
[Black "AlexeiShirov"]
[Result "0-1"]
[WhiteElo "2566"]
[BlackElo "2829"]
[TimeControl "180+1"]
[EndTime "10:31:09 PST"]
[Termination "AlexeiShirov won by resignation"]

1. d4 {[%clk 0:03:00.9]} 1... d5 {[%clk 0:02:59.4]} 2. Nf3 {[%clk 0:03:01.2]}
2... Nf6 {[%clk 0:02:58.4]} 3. Nc3 {[%clk 0:03:01.7]} 3... c6 {[%clk 0:02:56.5]}
4. Bg5 {[%clk 0:03:01.6]} 4... Nbd7 {[%clk 0:02:51.4]} 5. e3 {[%clk 0:03:00.4]}
5... h6 {[%clk 0:02:45.6]} 6. Bf4 {[%clk 0:02:56.1]} 6... g5 {[%clk 0:02:41.4]}
7. Bg3 {[%clk 0:02:55.7]} 7... Nh5 {[%clk 0:02:41]} 8. Bd3 {[%clk 0:02:51.6]}
8... Nxg3 {[%clk 0:02:38.4]} 9. hxg3 {[%clk 0:02:52.5]} 9... Bg7 {[%clk
0:02:38.2]} 10. Qe2 {[%clk 0:02:43.3]} 10... e5 {[%clk 0:02:36]} 11. dxe5 {[%clk
0:02:42.8]} 11... Nxe5 {[%clk 0:02:35.5]} 12. Nxe5 {[%clk 0:02:42.3]} 12... Bxe5
{[%clk 0:02:34.8]} 13. f4 {[%clk 0:02:41.5]} 13... Bxc3+ {[%clk 0:02:25.5]} 14.
bxc3 {[%clk 0:02:42.4]} 14... Qf6 {[%clk 0:02:23.7]} 15. O-O {[%clk 0:02:21.7]}
15... Be6 {[%clk 0:02:14.3]} 16. e4 {[%clk 0:02:21.3]} 16... dxe4 {[%clk
0:02:11.1]} 17. Qxe4 {[%clk 0:02:19.3]} 17... O-O-O {[%clk 0:02:10.2]} 18. Rab1
{[%clk 0:02:14.3]} 18... Qxc3 {[%clk 0:02:07.9]} 19. f5 {[%clk 0:01:46]} 19...
Bd5 {[%clk 0:02:05.8]} 20. Qa4 {[%clk 0:01:40.3]} 20... Qc5+ {[%clk 0:01:54.5]}
21. Kh2 {[%clk 0:01:37.7]} 21... h5 {[%clk 0:01:52.3]} 22. Ba6 {[%clk
0:01:20.8]} 22... bxa6 {[%clk 0:01:37.4]} 23. Qxa6+ {[%clk 0:01:20.1]} 23... Kd7
{[%clk 0:01:37.2]} 24. Qb7+ {[%clk 0:01:17.1]} 24... Kd6 {[%clk 0:01:36.7]} 25.
Rfe1 {[%clk 0:00:56]} 25... Rhe8 {[%clk 0:01:28.6]} 26. c4 {[%clk 0:00:54.9]}
26... Rb8 {[%clk 0:01:19.2]} 27. Qa6 {[%clk 0:00:41.8]} 27... Rxb1 {[%clk
0:01:12.4]} 28. Rxb1 {[%clk 0:00:39.1]} 28... Qxc4 {[%clk 0:01:12]} 29. Qa3+
{[%clk 0:00:33.8]} 29... Qc5 {[%clk 0:01:11.2]} 30. Qb2 {[%clk 0:00:31.8]} 30...
h4 {[%clk 0:01:07.1]} 31. Qf6+ {[%clk 0:00:22.6]} 31... Kc7 {[%clk 0:01:02.4]}
32. Qxg5 {[%clk 0:00:15.7]} 32... Qd6 {[%clk 0:00:54.9]} 33. Qxh4 {[%clk
0:00:13.6]} 33... Qe5 {[%clk 0:00:53]} 34. Kg1 {[%clk 0:00:07.6]} 34... Rh8
{[%clk 0:00:44.7]} 35. Qf4 {[%clk 0:00:05.8]} 35... Qxf4 {[%clk 0:00:43.6]} 36.
gxf4 {[%clk 0:00:06.7]} 36... Rg8 {[%clk 0:00:43.3]} 37. Rb2 {[%clk 0:00:06.8]}
37... Rg4 {[%clk 0:00:40]} 38. Rf2 {[%clk 0:00:06.9]} 38... c5 {[%clk
0:00:38.4]} 39. Kh2 {[%clk 0:00:06.6]} 39... c4 {[%clk 0:00:37.4]} 40. Kh3
{[%clk 0:00:06.9]} 40... Rxg2 {[%clk 0:00:37.1]} 41. Rxg2 {[%clk 0:00:06.3]}
41... Bxg2+ {[%clk 0:00:37]} 42. Kxg2 {[%clk 0:00:07.2]} 42... c3 {[%clk
0:00:36.4]} 43. Kf2 {[%clk 0:00:08.1]} 0-1

[Event "*** Titled Tuesday Blitz"]
[Site "Chess.com"]
[Date "2021.02.02"]
[Round "3"]
[White "szefru"]
[Black "anasta10"]
[Result "0-1"]
[WhiteElo "2214"]
[BlackElo "2493"]
[TimeControl "180+1"]
[EndTime "10:31:09 PST"]
[Termination "anasta10 won by resignation"]

1. e4 {[%clk 0:03:00.9]} 1... e6 {[%clk 0:02:59.2]} 2. d4 {[%clk 0:02:59.9]}
2... d5 {[%clk 0:02:57.2]} 3. Nd2 {[%clk 0:02:58]} 3... c5 {[%clk 0:02:56.3]} 4.
exd5 {[%clk 0:02:57.7]} 4... exd5 {[%clk 0:02:53.7]} 5. Bb5+ {[%clk 0:02:56.9]}
5... Nc6 {[%clk 0:02:53]} 6. Ngf3 {[%clk 0:02:55.5]} 6... Qe7+ {[%clk
0:02:53.4]} 7. Qe2 {[%clk 0:02:50.6]} 7... Qxe2+ {[%clk 0:02:52.9]} 8. Bxe2
{[%clk 0:02:51.5]} 8... Nf6 {[%clk 0:02:52.5]} 9. O-O {[%clk 0:02:50.1]} 9...
Bf5 {[%clk 0:02:47]} 10. c3 {[%clk 0:02:46.5]} 10... Bd6 {[%clk 0:02:45.9]} 11.
dxc5 {[%clk 0:02:45.1]} 11... Bxc5 {[%clk 0:02:46.8]} 12. Nb3 {[%clk 0:02:45]}
12... Bb6 {[%clk 0:02:47]} 13. Bg5 {[%clk 0:02:41.7]} 13... Ne4 {[%clk
0:02:46.4]} 14. Bh4 {[%clk 0:02:37.1]} 14... f6 {[%clk 0:02:33.5]} 15. Rad1
{[%clk 0:02:35.4]} 15... Be6 {[%clk 0:02:30.8]} 16. Nfd4 {[%clk 0:02:18.3]}
16... Bf7 {[%clk 0:02:29]} 17. Bf3 {[%clk 0:02:17.4]} 17... g5 {[%clk
0:02:26.1]} 18. Bg3 {[%clk 0:02:17.1]} 18... Nxg3 {[%clk 0:02:26.4]} 19. hxg3
{[%clk 0:02:18]} 19... Ne5 {[%clk 0:02:18.3]} 20. Rfe1 {[%clk 0:02:01.7]} 20...
O-O-O {[%clk 0:02:08.7]} 21. Nf5 {[%clk 0:02:00]} 21... Rhe8 {[%clk 0:02:01.7]}
22. Nbd4 {[%clk 0:01:28.5]} 22... a6 {[%clk 0:01:49.4]} 23. Nh6 {[%clk
0:01:18.8]} 23... Bg6 {[%clk 0:01:38.5]} 24. Bg4+ {[%clk 0:01:17.3]} 24... Kb8
{[%clk 0:01:15.8]} 25. Bf5 {[%clk 0:01:00.7]} 25... Bxd4 {[%clk 0:00:46.5]} 26.
cxd4 {[%clk 0:00:55.1]} 26... Nc6 {[%clk 0:00:44]} 27. Bxg6 {[%clk 0:00:41.1]}
27... hxg6 {[%clk 0:00:44.9]} 28. Ng4 {[%clk 0:00:40.9]} 28... f5 {[%clk
0:00:41.8]} 29. Rxe8 {[%clk 0:00:22.1]} 29... Rxe8 {[%clk 0:00:42.7]} 30. Nf6
{[%clk 0:00:22.6]} 30... Rd8 {[%clk 0:00:42.6]} 31. Kf1 {[%clk 0:00:21.5]} 31...
Rd6 {[%clk 0:00:42.2]} 32. Nh7 {[%clk 0:00:21.9]} 32... g4 {[%clk 0:00:41.3]}
33. Ng5 {[%clk 0:00:22]} 33... Kc7 {[%clk 0:00:33.7]} 34. f3 {[%clk 0:00:22.5]}
34... gxf3 {[%clk 0:00:33.2]} 35. gxf3 {[%clk 0:00:23.4]} 35... Rd7 {[%clk
0:00:32.3]} 36. Ne6+ {[%clk 0:00:22.8]} 36... Kd6 {[%clk 0:00:32]} 37. Nf4
{[%clk 0:00:23.4]} 37... g5 {[%clk 0:00:27.8]} 38. Nh3 {[%clk 0:00:23.6]} 38...
g4 {[%clk 0:00:27.7]} 39. fxg4 {[%clk 0:00:23.3]} 39... fxg4 {[%clk 0:00:28.6]}
40. Nf2 {[%clk 0:00:23.7]} 40... Rg7 {[%clk 0:00:28.4]} 41. Kg2 {[%clk
0:00:23.9]} 41... Ne7 {[%clk 0:00:27.7]} 42. Nd3 {[%clk 0:00:24]} 42... Nf5
{[%clk 0:00:28]} 43. Nf4 {[%clk 0:00:24.1]} 43... Ne3+ {[%clk 0:00:28.2]} 0-1